Cogmind - Beta 11 X6 @@@ ROGUE MODE // 2021.07.17 @ 19:26:49 Player: AlmondRoll Result: Destroyed by G-47 Trooper with Particle Gun Performance ------------- Evolutions (2) 1000 Regions Visited (6) 1200 Robots Destroyed (68) 340 Value Destroyed (1925) 1925 Prototype IDs (25) 500 Alien Tech Used (0) 0 Bonus (97) 97 TOTAL SCORE: 5062 Bonus ------- High Alert Combat Kills 120 Follower Combat Kills 33 Friendly Fire -56 Cogmind --------- Core Integrity 0/550 Matter 212/300 Energy 144/275 System Corruption 0% Temperature Cool (68) Movement Rolling (130) Ox2 Location -8/Storage Parts ------- > --- POWER (1) -------- Deuterium Engine > --- PROPULSION (3) --- Light Treads Compact Wheel > --- UTILITY (4) ------ Weapon Cycler Hardened Heavy Armor Plating > --- WEAPON (3) ------- Particle Gun > --- INVENTORY (5) ---- High-capacity Matter Pod (200) High-capacity Matter Pod (200) Hacking Suite Chronowheel Peak State ------------ > --- POWER ------------ Improved Deuterium Engine > --- PROPULSION ------- Light Treads Light Treads Compact Wheel > --- UTILITY ---------- High-capacity Storage Unit Makeshift Salvage Targeting Computer Heavy Armor Plating > --- WEAPON ----------- Heavy Assault Rifle Heavy Assault Rifle Gauss Rifle > --- INVENTORY -------- Improved Deuterium Engine Light Treads Light Treads Light Treads Light Treads Light Treads Compact Wheel Improved Heat Sink High-capacity Matter Pod High-capacity Matter Pod Heavy Armor Plating Chronowheel Assault Rifle Assault Rifle Assault Rifle Assault Rifle Light Cannon Light Cannon Mining Laser [Rating: 30] Favorites ----------- Power Ion Engine Engine Ion Engine Propulsion Compact Wheel Treads Light Treads Leg Aluminum Leg Wheel Compact Wheel Utility High-capacity Storage Unit Device Heat Sink Storage High-capacity Storage Unit Processor Makeshift Salvage Targeting Computer Protection Heavy Armor Plating Weapon Assault Rifle Energy Gun Particle Gun Ballistic Gun Assault Rifle Ballistic Cannon Light Cannon Launcher Mini Grenade Launcher Build | -11 -10 -10 -10 -9 -8 -8 ------- Run | Scr Mat Min Exi Min Mat Sto Slots Evolved 4 | . . . . . 4 . Power . | . . . . . . . Propulsion 1 | . . . . . 1 . Utility 2 | . . . . . 2 . Weapon 1 | . . . . . 1 . Parts Attached 83 | 2 14 4 2 7 14 40 Power 6 | . 1 . . . 2 3 Engine 6 | . 1 . . . 2 3 Core . | . . . . . . . Reactor . | . . . . . . . Propulsion 39 | 2 4 4 . 6 5 18 Treads 20 | . 2 1 . 4 3 10 Leg . | . . . . . . . Wheel 19 | 2 2 3 . 2 2 8 Hover . | . . . . . . . Flight . | . . . . . . . Utility 12 | . 3 . 1 . 3 5 Device 6 | . 1 . . . 2 3 Storage 2 | . 2 . . . . . Processor 1 | . . . 1 . . . Hackware . | . . . . . . . Protection 3 | . . . . . 1 2 Artifact . | . . . . . . . Weapon 26 | . 6 . 1 1 4 14 Energy Gun 3 | . . . . . . 3 Energy Cannon . | . . . . . . . Ballistic Gun 20 | . 6 . 1 1 4 8 Ballistic Cannon 2 | . . . . . . 2 Launcher 1 | . . . . . . 1 Special Weapon . | . . . . . . . Impact Weapon . | . . . . . . . Slashing Weapon . | . . . . . . . Piercing Weapon . | . . . . . . . Special Melee Weapon . | . . . . . . . Unidentified Prototypes . | . . . . . . . Parts Lost 29 | . 3 1 . 2 . 23 Power 4 | . 1 . . 1 . 2 Propulsion 9 | . . 1 . . . 8 Utility 2 | . . . . . . 2 Weapon 14 | . 2 . . 1 . 11 Highest Loss Streak 18 | . 3 1 . 2 . 18 Average Slot Usage (%) 93 | . 95 100 100 97 89 80 Engine 11 | . 14 14 14 11 7 8 Treads 8 | . 6 . . 6 18 15 Wheel 19 | . 21 27 28 21 8 8 Device 5 | . 10 14 9 . 1 3 Storage 12 | . 14 14 14 14 9 7 Processor 6 | . . . 4 14 9 7 Protection 2 | . . . . . 8 5 Ballistic Gun 26 | . 27 28 28 27 27 17 Naked Turns 3 | . . . . . . 3 Heaviest Build 75 | 14 50 50 50 49 75 75 Greatest Support 60 | 26 40 32 32 40 60 60 Greatest Overweight (x) 4 | . 1 1 1 1 4 4 Average Overweight (x) 1 | . . 1 1 1 3 2 Largest Inventory Capacity 20 | 8 20 20 20 20 20 20 Average Capacity 18 | 8 12 20 20 20 20 17 Most Carried 20 | 6 15 15 20 20 20 20 Average Carried 15 | 5 9 13 15 19 18 14 Final Capacity 20 | 8 20 20 20 20 20 5 Final Carried 20 | 6 13 13 20 19 20 4 Class Distribution -------------------- 36% | Commander-Mutant 35% | Mutant 19% | Scavenger-Tank 4% | Tank Dominant Class ---------------- Mutant | -10/Materials Mutant | -10/Mines Commander-Mutant | -10/Exiles Commander-Mutant | -9/Mines Scavenger-Tank | -8/Materials Scavenger-Tank | -8/Storage Resources | -11 -10 -10 -10 -9 -8 -8 ----------- Run | Scr Mat Min Exi Min Mat Sto Matter Collected 2779 | 244 502 130 182 141 320 1260 Remotely . | . . . . . . . Salvage Created 3081 | 114 622 218 263 20 314 1530 Parts 182 | 3 45 8 14 . 24 88 Haulers Intercepted 2 | . 2 . . . . . Recyclers Shooed 12 | 1 1 2 . . . 8 Parts Field Recycled . | . . . . . . . Retrieved Matter . | . . . . . . . Parts Self-Destructed . | . . . . . . . Prevented . | . . . . . . . Kills | -11 -10 -10 -10 -9 -8 -8 ------- Run | Scr Mat Min Exi Min Mat Sto Combat Hostiles Destroyed 47 | . 12 2 . 1 5 27 Guns 36 | . 12 2 . 1 5 16 Cannons 8 | . . . . . . 8 AOE 3 | . . . . . . 3 Classes Destroyed 12 | 2 6 . . 1 2 1 Worker 4 | . 1 1 . . . 2 Tunneler 2 | 1 . . . . 1 . Hauler 2 | . 2 . . . . . Recycler 7 | 1 1 1 . . . 4 Operator 3 | . 2 . . . . 1 Watcher 4 | . 3 . . . . 1 Swarmer 12 | . 6 . . . . 6 Grunt 26 | . 6 2 . . 2 16 Sentry 5 | . . . . . 2 3 Hunter 2 | . . . . . 1 1 Heavy 1 | . . . . . . 1 Assembled 1 | . . . . 1 . . Best Kill Streak 14 | 1 9 2 . 1 2 14 Combat Bots Only 7 | . 4 2 . 1 2 7 Max Kills in Single Turn 2 | 1 1 1 . 1 1 2 Gunslinging 1 | . . . . . . 1 Exploded 2 | . . . . . . 2 Melee . | . . . . . . . Uniques/NPCs Destroyed . | . . . . . . . Combat | -11 -10 -10 -10 -9 -8 -8 -------- Run | Scr Mat Min Exi Min Mat Sto Damage Taken 4566 | . 452 198 . 208 378 3330 Core 652 | . 44 37 . 21 31 519 Absorbed by Shields . | . . . . . . . Core Remaining (%) 79 | 100 . . . 59 . . Volleys Fired 230 | 4 68 14 17 14 19 94 Largest 3 | 2 2 2 2 2 3 3 Hottest 130 | 40 40 40 40 40 74 130 Shots Fired 540 | 8 136 28 34 27 57 250 Gun 480 | 8 136 28 34 27 57 190 Cannon 55 | . . . . . . 55 Launcher 5 | . . . . . . 5 Special . | . . . . . . . Kinetic 513 | 8 136 28 34 27 57 223 Thermal 22 | . . . . . . 22 Explosive 5 | . . . . . . 5 Electromagnetic . | . . . . . . . Robot Hit Streak 18 | 3 18 9 11 8 7 13 Robot Miss Streak 5 | 1 3 2 1 5 4 3 Penetration Max 1 | . . . . . . 1 Secondary Targets 8 | . . 1 . . 1 6 Max Gunslinging Chain 1 | . . 1 . . 1 1 Shots Hit Robots 325 | 6 91 19 28 11 29 141 Core Hits 146 | 3 36 7 16 3 13 68 Critical Kills 3 | . 1 . . . 1 1 Critical Parts Destroyed 3 | . 1 . 1 . . 1 Critical Strikes 8 | . 2 . 1 . 1 4 Destroy 6 | . 2 . 1 . 1 2 Blast 2 | . . . . . . 2 Melee Attacks . | . . . . . . . Impact . | . . . . . . . Slashing . | . . . . . . . Piercing . | . . . . . . . Sneak Attacks . | . . . . . . . Combat Hostiles . | . . . . . . . Follow-up Attacks . | . . . . . . . Damage Inflicted 5776 | 76 1251 253 343 153 440 3260 Guns 4569 | 76 1211 253 343 150 440 2096 Cannons 574 | . . . . . . 574 Explosions 621 | . 40 . . . . 581 Melee . | . . . . . . . Ramming 12 | . . . . 3 . 9 Kinetic 4909 | 76 1211 253 343 150 440 2436 Thermal 274 | . 40 . . . . 234 Explosive 581 | . . . . . . 581 Electromagnetic . | . . . . . . . Impact . | . . . . . . . Slashing . | . . . . . . . Piercing . | . . . . . . . Highest Corruption . | . . . . . . . Average Corruption . | . . . . . . . Corruption Purged . | . . . . . . . Overload Shots . | . . . . . . . Overflow Damage 98 | . 51 . . . . 47 Projectiles 28 | . . . . . . 28 Explosions 70 | . 51 . . . . 19 Melee . | . . . . . . . Knockbacks 6 | . . . . . . 6 Impact . | . . . . . . . Kinetic 6 | . . . . . . 6 Secondary . | . . . . . . . Self-Inflicted Damage 258 | . 137 . . . . 121 Shots 7 | . 2 . . . . 5 Rammed 3 | . . . . 2 . 1 Targets Rammed 3 | . . . . 2 . 1 Kicked . | . . . . . . . Crushed . | . . . . . . . Highest Temperature 476 | 6 . 10 . 13 207 476 Average Temperature 130 | 6 . 10 . 9 57 150 Received Heat Transfer 1837 | . 81 132 . 112 162 1350 Effects 10 | . . . . . 1 9 Shutdowns 1 | . . . . . . 1 Energy Bleed 4 | . . . . . 1 3 Interference 1 | . . . . . . 1 Matter Decay 2 | . . . . . . 2 Short Circuit 1 | . . . . . . 1 Damage (minor) 1 | . . . . . . 1 Siege Activations . | . . . . . . . Robots Corrupted . | . . . . . . . Combat Hostiles . | . . . . . . . Parts Fried . | . . . . . . . Impact Corruptions . | . . . . . . . Robots Melted . | . . . . . . . Combat Hostiles . | . . . . . . . Parts Melted 1 | . . . . . . 1 Heat Transferred 605 | . 50 . . . . 555 Parts Sabotaged . | . . . . . . . Parts Stolen . | . . . . . . . Parts Stripped . | . . . . . . . Power Chain Reactions . | . . . . . . . Missiles Intercepted . | . . . . . . . Alert | -11 -10 -10 -10 -9 -8 -8 ------- Run | Scr Mat Min Exi Min Mat Sto Peak Influence 534 | 10 260 157 . . 152 534 Initial 92 | . 6 92 . . . 18 Average 118 | 6 179 132 . . 44 274 Maximum Alert Level 2 | . 1 . . . . 2 Low Security (%) 70 | 100 36 100 . 100 100 30 Level 1 26 | . 63 . . . . 50 Level 2 3 | . . . . . . 18 Level 3 . | . . . . . . . Level 4 . | . . . . . . . Level 5 . | . . . . . . . High Security . | . . . . . . . Max Security . | . . . . . . . Squads Dispatched 10 | . 3 . . . . 7 Investigation 1 | . 1 . . . . . Extermination . | . . . . . . . Reinforcement 9 | . 2 . . . . 7 Assault . | . . . . . . . Garrison . | . . . . . . . Intercept . | . . . . . . . Construction Impeded 1 | . . . . . . 1 Haulers Reinforced 1 | . . . . . . 1 Active Scanning Responses . | . . . . . . . Cargo Convoy Interrupts . | . . . . . . . Stealth | -11 -10 -10 -10 -9 -8 -8 --------- Run | Scr Mat Min Exi Min Mat Sto Distress Signals 8 | . 1 . . 2 . 5 Communications Jammed . | . . . . . . . Distress Signals . | . . . . . . . Times Spotted 85 | . 21 2 . 10 12 40 Peak Tracking Total 7 | . 5 2 . 4 5 7 Tactical Retreats 1 | . 1 . . . . . Traps | -11 -10 -10 -10 -9 -8 -8 ------- Run | Scr Mat Min Exi Min Mat Sto Traps Triggered 2 | . . . . . . 2 Indirectly . | . . . . . . . Trap Hack Attempts . | . . . . . . . Triggered . | . . . . . . . Disarmed . | . . . . . . . Reprogrammed . | . . . . . . . Reused . | . . . . . . . Traps Extracted . | . . . . . . . Installed . | . . . . . . . Triggered . | . . . . . . . Machines | -11 -10 -10 -10 -9 -8 -8 ---------- Run | Scr Mat Min Exi Min Mat Sto Machines Disabled 8 | . 2 1 . . . 5 Max in Single Turn 2 | . 2 1 . . . 2 Machines Sabotaged . | . . . . . . . Garrisons Compromised . | . . . . . . . Overloaded Fab Kills . | . . . . . . . Fab Network Shutdowns . | . . . . . . . Hacking | -11 -10 -10 -10 -9 -8 -8 --------- Run | Scr Mat Min Exi Min Mat Sto Machines Accessed 15 | . 5 . 2 . 6 2 Terminals 11 | . 5 . . . 5 1 Fabricators . | . . . . . . . Repair Stations 2 | . . . . . 1 1 Recycling Units . | . . . . . . . Scanalyzers . | . . . . . . . Garrison Access . | . . . . . . . Total Hacks 51 | . 25 . 3 . 20 3 Successful 23 | . 13 . 3 . 5 2 Failed 26 | . 11 . . . 14 1 Catastrophic 4 | . 2 . . . 1 1 Database Lockouts 2 | . 1 . . . 1 . Manual 36 | . 20 . 1 . 15 . Terminals 43 | . 25 . . . 17 1 Fabricators . | . . . . . . . Repair Stations 5 | . . . . . 3 2 Recycling Units . | . . . . . . . Scanalyzers . | . . . . . . . Garrison Access . | . . . . . . . Terminal Hacks 16 | . 10 . 3 . 3 . Record 2 | . . . 2 . . . Robot Analysis 5 | . 4 . . . 1 . Prototype ID Bank 1 | . 1 . . . . . Branch Access Points 2 | . 1 . . . 1 . Unreport Threat 3 | . 2 . . . 1 . Locate Traps 1 | . 1 . . . . . Hauler Manifests 1 | . 1 . . . . . EX-Prototype ID Bank 1 | . . . 1 . . . Fabricator Hacks . | . . . . . . . Repair Station Hacks 2 | . . . . . . 2 Scan Component 1 | . . . . . . 1 Repair 1 | . . . . . . 1 Recycling Unit Hacks . | . . . . . . . Scanalyzer . | . . . . . . . Garrison Access Hacks . | . . . . . . . Unauthorized Hacks 5 | . 3 . . . 2 . Terminals 5 | . 3 . . . 2 . Botnet 4 | . 2 . . . 2 . Operators 1 | . 1 . . . . . Fabricators . | . . . . . . . Repair Stations . | . . . . . . . Recycling Units . | . . . . . . . Scanalyzers . | . . . . . . . Garrison Access . | . . . . . . . Data Cores Recovered . | . . . . . . . Used . | . . . . . . . Hacking Detections 13 | . 5 . . . 6 2 Full Trace Events 2 | . 2 . . . . . Feedback Events . | . . . . . . . Feedback Blocked . | . . . . . . . Robot Schematics Acquired . | . . . . . . . Robots Built . | . . . . . . . Matter . | . . . . . . . Time . | . . . . . . . Total Robot Build Rating . | . . . . . . . Part Schematics Acquired . | . . . . . . . Parts Built . | . . . . . . . Matter . | . . . . . . . Time . | . . . . . . . Total Part Build Rating . | . . . . . . . Parts Repaired . | . . . . . . . Time 38 | . . . . . . 38 Parts Recycled . | . . . . . . . Recycled Matter . | . . . . . . . Retrieved Matter . | . . . . . . . Retrieved Components . | . . . . . . . Parts Scanalyzed . | . . . . . . . Part Schematics Acquired . | . . . . . . . Parts Damaged . | . . . . . . . Bothacking | -11 -10 -10 -10 -9 -8 -8 ------------ Run | Scr Mat Min Exi Min Mat Sto Used RIF Installer . | . . . . . . . Robots Hacked . | . . . . . . . Non-combat . | . . . . . . . Combat . | . . . . . . . Robot Hacks Applied . | . . . . . . . Relay Couplers Released . | . . . . . . . Robots Rewired 5 | . . . 5 . . . Allies Hacked . | . . . . . . . Hacks Repelled . | . . . . . . . Allies | -11 -10 -10 -10 -9 -8 -8 -------- Run | Scr Mat Min Exi Min Mat Sto Total Allies 7 | . . 2 5 . . . Largest Group 5 | . . 2 5 5 3 . Highest-Rated Group 53 | . . 46 53 53 23 . Highest-Rated Ally 31 | . . 31 31 21 8 . Total Orders . | . . . . . . . Ally Attacks 56 | . . . . 44 12 . Total Damage 492 | . . . . 392 100 . Kills 11 | . . . . 9 2 . Allies Corrupted . | . . . . . . . Allies Melted . | . . . . . . . Intel | -11 -10 -10 -10 -9 -8 -8 ------- Run | Scr Mat Min Exi Min Mat Sto Robot Analysis Total 5 | . 4 . . . 1 . Derelict Logs Recovered 2 | . . . . 2 . . Drone Launches . | . . . . . . . Drone Recoveries . | . . . . . . . Exploration | -11 -10 -10 -10 -9 -8 -8 ------------- Run | Scr Mat Min Exi Min Mat Sto Turns Passed 4116 | 60 797 231 957 758 692 621 Spaces Moved 2226 | 47 492 165 725 254 375 168 Core 8 | . . . . . . 8 Treads 133 | . 55 . . 55 2 21 Legs . | . . . . . . . Wheels 2085 | 47 437 165 725 199 373 139 Hover . | . . . . . . . Flight . | . . . . . . . Fastest Speed 50 | 90 90 105 115 115 130 50 Average Speed 125 | 90 108 106 115 146 157 146 Slowest Speed 260 | 90 160 115 115 260 160 260 Overloaded Moves . | . . . . . . . Propulsion Burnouts . | . . . . . . . Robots Hopped . | . . . . . . . Cave-ins Triggered . | . . . . . . . Exploration Rate (%) 48 | 3 78 36 94 61 35 31 Regions Visited 6 Branch Regions 4 Pre-discovered Areas 2 | . . . 1 1 . . Known Exits Taken 2 | . 1 . . . 1 . Unknown Exits Taken 4 | 1 . 1 1 1 . . Scrap Searched 3 | . . 1 . 2 . . Spaces Dug . | . . . . . . . Terrain Destroyed 66 | . 35 . . . 1 30 Melee . | . . . . . . . Projectile 4 | . . . . . 1 3 AOE 62 | . 35 . . . . 27 Terrain Rammed . | . . . . . . . Walls Destroyed . | . . . . . . . Machines Disabled . | . . . . . . . Actions | -11 -10 -10 -10 -9 -8 -8 --------- Run | Scr Mat Min Exi Min Mat Sto Total 3066 | 56 622 191 814 608 435 340 Wait 411 | . 29 6 13 332 6 25 Move 2220 | 46 491 164 724 253 374 168 Hop . | . . . . . . . Pick Up 36 | 2 12 1 7 . 10 4 Fast Attach 19 | . 3 . 1 . 4 11 Attach 23 | . 3 1 . 1 2 16 Detach 1 | . . . . . . 1 Swap 41 | 2 8 3 1 6 8 13 Drop 33 | 2 8 2 2 . 12 7 Fire 230 | 4 68 14 17 14 19 94 Melee . | . . . . . . . Ram 1 | . . . . . . 1 Kick . | . . . . . . . Crush 2 | . . . . 2 . . Escape Stasis . | . . . . . . . Rewire 49 | . . . 49 . . . Trap . | . . . . . . . Miscellaneous . | . . . . . . . Route ------- -11/Scrapyard -10/Materials (discovered 3 exits: [*Mat] / *Min x2) -10/Mines (discovered 2 exits: [*Mat] / *Exi) -10/Exiles (discovered 2 exits: [*Min x2]) -9/Mines -8/Materials (discovered 2 exits: [*Fac] / *Sto) -8/Storage History --------- Turn | Location | Event 15 | -11/Scrapyard | Discovered new exit (range 3) 61 | -11/Scrapyard | Entered Materials 163 | -10/Materials | Central database locked down 326 | -10/Materials | Build established: Mutant 430 | -10/Materials | Identified exit to Mines 631 | -10/Materials | Discovered new exit (range 3) 848 | -10/Materials | Lost 3 parts (1p2w) 858 | -10/Materials | Entered Mines 896 | -10/Mines | Discovered new exit (range 7) 1076 | -10/Mines | Deemed a non-threat by the Exiles lab entrance 1077 | -10/Mines | Discovered new exit (range 5) 1089 | -10/Mines | Entered Exiles 1089 | -10/Exiles | Found Exiles lab destroyed 1089 | -10/Exiles | Accompanied by 2 allies 1107 | -10/Exiles | Discovered new exit (range 15) 1119 | -10/Exiles | Led the pair of lost Derelicts to a safe place 1503 | -10/Exiles | Learned location of Zion (-7) 1557 | -10/Exiles | Build established: Commander-Mutant 1658 | -10/Exiles | Opened EX-Vault 1668 | -10/Exiles | Found Chronowheel 1944 | -10/Exiles | Discovered new exit (range 14) 2046 | -10/Exiles | Entered Mines 2046 | -9/Mines | Accompanied by 5 allies 2047 | -9/Mines | Assembled infested the area 2052 | -9/Mines | Learned location of Recycling (-8) 2651 | -9/Mines | Learned location of 1 exit from Proximity Caves 2758 | -9/Mines | Discovered new exit (range 13) 2804 | -9/Mines | Entered Materials 2804 | -8/Materials | Accompanied by 3 allies 2804 | -8/Materials | Evolved 4 slots: Propulsion x1, Utility x2, Weapon x1 3106 | -8/Materials | Discovered new exit (range 7) 3167 | -8/Materials | Discovered new exit (range 6) 3268 | -8/Materials | Central database locked down 3283 | -8/Materials | Build established: Scavenger-Tank 3297 | -8/Materials | Identified exit to Storage 3496 | -8/Materials | Entered Storage 3909 | -8/Storage | Destroyed 7 combat bots 4005 | -8/Storage | Core integrity fell below 50% 4051 | -8/Storage | Lost 18 parts (1p7n2u8w) 4055 | -8/Storage | Core integrity fell below 20% 4117 | -8/Storage | Destroyed by G-47 Trooper with Particle Gun Last Messages --------------- 04103_ U-05 Engineer builds a Door. 04107_ Slammed into A-02 Transporter. 04108_ Compression Vault explodes. 04108_ A-02 Transporter destroyed. 04108_ G-47 Trooper destroyed. 04108_ K-01 Serf collects debris. 04109_ U-05 Engineer lays Concrete. 04109_ Acquired 39 matter. 04110_ U-05 Engineer lays Concrete. 04111_ The unstable cave ceiling collapses. 04111_ Deuterium Engine destroyed. 04112_ U-05 Engineer lays Concrete. 04112_ Triggered Blade Trap. 04112_ Massive razor-sharp blades shoot up from within the floor. 04112_ Imp. Heat Sink severed. 04112_ Arm. Treads severed. 04113_ U-05 Engineer lays Concrete. 04113_ Critical hit (Burn: +37). 04113_ K-01 Serf collects debris. 04114_ U-05 Engineer lays Concrete. Map ----- +----------------------------------------------------+ | | | | | | | | | | | | | | | ?????????????????????????????????????????????????? | | ?????????????????????????????????????????????????? | | ?????????????????????????????????????????????????? | | ?????????????????????????????????????????????????? | | ?????????????????????????????????????????????????? | | ?????????????????????????????????????????????????? | | ?????????????????????????????????????????????????? | | ?????????????????????????????????????????????????? | | ?????????????????????????????????????????????????? | | ?????????????????????????????????????????????????? | | ?????????????????????????????????????????????????? | | ?????????????????????????????????????????????????? | | ?????????????????????????????????????????????????? | | ?????????????????????????????????????????????????? | | ?????????????????????????????????????????????????? | | ???????????????????????????????????##????????????? | | ????????????????????????????####### #####????????? | | ???????????????# ########## #????????? | | ???????????????# Y @ !== + ???????? | | ???????????????+ ######## !! """ #????????? | | ??????????????????????????## ! """ #????????? | | ??????????????????????????# ! Y""" #????????? | | ??????????????????????????# #! g= #??#?????? | | ??????????????????????????## [%%! #? #?????? | | ???????????????????????????# /##### #?????? | | ??????????????????????######## #* #### ##????? | | ??????????????????????# !# #"# #????? | | ??????????????????????# "T" !+ = #????? | | ??????????????????????# " * #[ #????? | | ?????????????????????## / [ ! # ## #????? | | ?????????????????????# %%# ##+###????? | | ???????????????????# "" %% =+ ????? | | ???????????????????#"#" #*! # ??? | | ?????????????????????######+#######%%[ """" #?? | | ????????????????????????# #### [= "????? #?? | | ?????????????????????? + "????????? | | ????????????????????????# "????????? | | ????????????????????????# ##### # "????????? | | ????????????????????????##???######+### "????????? | | ?????????????????????????????# % !# ????????? | | ?????????????????????????????# % % ####???????? | | ?????????????????????????????# #??????????? | | ??????????????????????????#### %""*% #??????????? | +----------------------------------------------------+ Best States ------------- Heat Dissipation 45 Energy Generation 16 Energy Capacity 290 Matter Stores 300 Matter Capacity 300 Sight Range 16 Terrain Scan Density 10 Armor Coverage 600 Weapon Cycling 15 Evasion (%) 42 Recoil Reduction 3 Salvage Targeting 4 Item Schematics ----------------- None Robot Schematics ------------------ None Fabricated ------------ Nothing Alien Tech Used ----------------- None Achievements -------------- None Challenges ------------ None Game ------ Seed IonicScatterBay Manual? 0 Play Time 00:40:04 Cumulative 275.0 hours Start 2021.07.17 @ 17:49:11 End 2021.07.17 @ 19:26:49 Sessions 1 Manual Loads 0 Difficulty Rogue Special Mode None Game No. 149 Rogue 149 Adventurer 0 Explorer 0 Win Type - Total 8 Types 6/0/1/1/0/0/0/0/0 Lore% 76 Gallery% 82 Achievement% 62 Wizard Run 0 Options --------- ASCII 0 Keyboard 0 Movement Numpad Keybinds 0 Fullscreen 1 Font 18/SmallcapsGlow Map View 76x50 Tactical HUD 1 Map Filters NONE Filters NONE Steam 1 RUN: 5448cfcf-1ac0-4380-bcb9-37a12818f5cd